[Event "Pan-American U20-ch 2023"]
[Site "Volta Redonda"]
[Date "2023.11.08"]
[Round "4.4"]
[White "Tomiello, Mateus Costamilan"]
[Black "Flores Quillas, Diego Saul Rodri"]
[Result "0-1"]
[ECO "A29"]
[WhiteElo "2145"]
[BlackElo "2369"]
[Annotator "RC"]
[PlyCount "106"]
[EventDate "2023.10.31"]
[EventType "swiss"]
[EventCountry "BRA"]
[SourceTitle "playchess.com"]
[Source "ChessBase"]
[SourceQuality "1"]
[TimeControl "5400+30"]

1. c4 {[%emt 0:00:08]} e5 {[%emt 0:19:20]} 2. Nc3 {[%emt 0:00:41]} Nf6 {[%emt 1:12:10]} 3. Nf3 {[%emt 0:01:16]} Nc6 {[%emt 0:00:00]} 4. g3 {[%emt 0:01:06]} Bb4 {[%emt 0:01:00]} 5. Bg2 {[%emt 0:04:05]} O-O {[%emt 0:00:00]} 6. Qc2 {[%emt 0:02:30]} Re8 {[%emt 0:00:00]} 7. O-O {[%emt 1:24:14]} e4 {[%emt 0:01:30]} 8. Ng5 {[%emt 0:00:30]} Bxc3 {[%emt 0:00:00]} 9. bxc3 {[%emt 0:00:00]} Qe7 {[%emt 0:01:00]} 10. d3 {[%emt 0:00:00]} exd3 {[%emt 0:00:00]} 11. exd3 {[%emt 0:00:00]} d6 {[%emt 0:01:00]} 12. Rb1 {[%emt 0:00:00]} Qe2 {[%emt 0:00:30]} 13. Bd2 {[%emt 0:02:30]} Ne5 {[%emt 0:00:30]} 14. Rfe1 {[%emt 0:00:00]} Qxd3 {[%emt 0:00:30]} 15. Qxd3 {[%emt 0:00:00]} Nxd3 {[%emt 0:00:30]} 16. Rxe8+ {[%emt 0:00:00]} Nxe8 {[%emt 0:00:30]} 17. Bd5 {[%emt 0:00:00]} Nf6 {[%emt 0:00:30]} 18. Bxf7+ {[%emt 0:00:00]} Kf8 {[%emt 0:00:30]} 19. Bd5 {[%emt 0:03:00]} h6 {[%emt 0:00:00]} 20. Ne6+ {[%emt 0:00:30]} Bxe6 {[%emt 0:00:00]} 21. Bxe6 {[%emt 0:00:00]} b6 {[%emt 0:01:30]} 22. Bf5 {[%emt 0:01:00]} Ne5 {[%emt 0:00:30]} 23. Bf4 {[%emt 0:00:00]} Nxc4 {[%emt 0:00:30]} 24. Rd1 {[%emt 0:00:00]} Re8 {[%emt 0:00:00]} 25. Kf1 {[%emt 0:01:30]} Ne5 {[%emt 0:00:00]} 26. h4 {[%emt 0:00:30]} h5 {[%emt 0:01:30]} 27. Bc2 {[%emt 0:00:30]} Re7 {[%emt 0:00:30]} 28. Kg2 {[%emt 0:00:00]} Ned7 {[%emt 0:00:30]} 29. Kf3 {[%emt 0:01:00]} Ne5+ {[%emt 0:00:00]} 30. Kg2 {[%emt 0:00:00]} Neg4 {[%emt 0:01:00]} 31. Bg5 {[%emt 0:00:00]} Re2 {[%emt 0:00:00]} 32. Rd2 {[%emt 0:00:00]} Rxd2 {[%emt 0:00:00]} 33. Bxd2 {[%emt 0:00:00]} Kf7 {[%emt 0:00:00]} 34. f3 {[%emt 0:00:04]} Ne5 {[%emt 0:02:00]} 35. Bb3+ {[%emt 0:00:41]} d5 {[%emt 0:00:30]} 36. Bd1 {[%emt 0:00:42]} c5 {[%emt 0:00:00]} 37. Kf2 {[%emt 0:00:26]} Ke6 {[%emt 0:00:00]} 38. Bg5 {[%emt 0:02:37]} b5 {[%emt 0:01:30]} 39. Ke3 {[%emt 0:00:30]} a5 {[%emt 0:00:30]} 40. Be2 {[%emt 0:00:00]} b4 {[%emt 0:00:00]} 41. cxb4 {[%emt 0:00:00]} axb4 {[%emt 0:00:00]} 42. Kd2 {[%emt 0:01:30]} g6 {[%emt 0:01:30]} 43. Bf4 {[%emt 0:00:00]} c4 {[%emt 0:00:30]} 44. Ke3 {[%emt 0:00:00]} Nc6 {[%emt 0:00:00]} 45. Bh6 {[%emt 0:00:10]} d4+ {[%emt 0:00:00]} 46. Kd2 {[%emt 0:00:18]} d3 {[%emt 0:00:00]} 47. Bd1 {[%emt 0:00:13]} Ne5 {[%emt 0:00:00]} 48. Bf8 {[%emt 0:00:47]} Nd5 {[%emt 0:00:00]} 49. f4 {[%emt 0:00:31]} c3+ {[%emt 0:00:00]} 50. Kc1 {[%emt 0:00:09]} d2+ {[%emt 0:00:00]} 51. Kb1 {[%emt 0:00:41]} Nc4 {[%emt 0:00:00]} 52. Bb3 {[%emt 0:00:39]} Na3+ {[%emt 0:00:00]} 53. Ka1 {[%emt 0:00:05]} c2 {[%emt 0:00:00]} 0-1

[Event "Pan-American U20-ch 2023"]
[Site "Volta Redonda"]
[Date "2023.11.08"]
[Round "5.1"]
[White "Oro, Faustino"]
[Black "Soriano Quispe, Ivan Excender"]
[Result "1/2-1/2"]
[ECO "E05"]
[WhiteElo "2356"]
[BlackElo "2214"]
[Annotator "RC"]
[PlyCount "51"]
[EventDate "2023.10.31"]
[EventType "swiss"]
[EventCountry "BRA"]
[SourceTitle "playchess.com"]
[Source "ChessBase"]
[SourceQuality "1"]
[TimeControl "5400+30"]

1. Nf3 {[%emt 0:00:03]} Nf6 {[%emt 0:02:21]} 2. g3 {[%emt 0:00:06]} d5 {[%emt 0:00:21]} 3. Bg2 {[%emt 0:00:14]} e6 {[%emt 0:00:50]} 4. O-O {[%emt 0:00:23]} Be7 {[%emt 0:00:38]} 5. d4 {[%emt 0:01:22]} O-O {[%emt 0:01:09]} 6. c4 {[%emt 0:00:36]} dxc4 {[%emt 0:03:59]} 7. Qa4 {[%emt 0:00:46]} a6 {[%emt 0:01:28]} 8. Qxc4 {[%emt 0:00:05]} b5 {[%emt 0:00:26]} 9. Qc2 {[%emt 0:00:24]} Bb7 {[%emt 0:00:10]} 10. Bg5 {[%emt 0:01:11]} Nbd7 {[%emt 0:05:29]} 11. Nbd2 {[%emt 0:04:46]} h6 {[%emt 0:09:51]} 12. Bxf6 {[%emt 0:00:21]} Nxf6 {[%emt 0:02:53]} 13. Nb3 {[%emt 0:01:42]} Be4 {[%emt 0:01:55]} 14. Qc1 {[%emt 0:01:09]} Bd5 {[%emt 0:03:27]} 15. Nc5 {[%emt 0:02:03]} Ne4 {[%emt 0:02:59]} 16. Rd1 {[%emt 0:04:24]} Bxc5 {[%emt 0:03:26]} 17. dxc5 {[%emt 0:00:09]} Qf6 {[%emt 0:02:40]} 18. Qc2 {[%emt 0:06:08]} Rad8 {[%emt 0:04:38]} 19. Rd3 {[%emt 0:06:54]} Ng5 {[%emt 0:10:19]} 20. Nxg5 {[%emt 0:06:45]} hxg5 {[%emt 0:05:53]} 21. Rad1 {[%emt 0:05:25]} Bxg2 {[%emt 0:01:59]} 22. Kxg2 {[%emt 0:00:07]} Qf5 {[%emt 0:01:43]} 23. R1d2 {[%emt 0:03:29]} Rd5 {[%emt 0:06:28]} 24. Rxd5 {[%emt 0:05:03]} Qxc2 {[%emt 0:00:06]} 25. Rxc2 {[%emt 0:00:01]} exd5 {[%emt 0:27:52]} 26. Kg1 {[%emt 0:49:54]} 1/2-1/2

[Event "Pan-American U20-ch 2023"]
[Site "Volta Redonda"]
[Date "2023.11.09"]
[Round "5.2"]
[White "Castro Salgado, Pablo"]
[Black "Flores Quillas, Diego Saul Rodri"]
[Result "0-1"]
[ECO "A46"]
[WhiteElo "2202"]
[BlackElo "2369"]
[Annotator "RC"]
[PlyCount "136"]
[EventDate "2023.10.31"]
[EventType "swiss"]
[EventCountry "BRA"]
[SourceTitle "playchess.com"]
[Source "ChessBase"]
[SourceQuality "1"]
[TimeControl "5400+30"]

1. d4 {[%emt 0:01:28]} Nf6 {[%emt 0:06:32]} 2. Nf3 {[%emt 0:00:05]} e6 {[%emt 0:00:04]} 3. Bg5 {[%emt 0:00:24]} c5 {[%emt 0:01:30]} 4. c3 {[%emt 0:00:39]} Nc6 {[%emt 0:00:37]} 5. e3 {[%emt 0:00:26]} h6 {[%emt 0:01:02]} 6. Bh4 {[%emt 0:00:13]} Be7 {[%emt 0:01:10]} 7. Nbd2 {[%emt 0:00:14]} b6 {[%emt 0:02:53]} 8. Bd3 {[%emt 0:01:40]} Bb7 {[%emt 0:00:53]} 9. O-O {[%emt 0:06:00]} O-O {[%emt 0:02:51]} 10. Nc4 {[%emt 0:11:16]} d6 {[%emt 0:14:55]} 11. a4 {[%emt 0:18:18]} cxd4 {[%emt 0:07:47]} 12. exd4 {[%emt 0:01:06]} Nd5 {[%emt 0:00:08]} 13. Bxe7 {[%emt 0:02:37]} Ncxe7 {[%emt 0:00:45]} 14. g3 {[%emt 0:02:56]} Rc8 {[%emt 0:00:32]} 15. Re1 {[%emt 0:01:40]} Qc7 {[%emt 0:03:09]} 16. Qe2 {[%emt 0:11:05]} Nf6 {[%emt 0:00:11]} 17. Ncd2 {[%emt 0:00:32]} Rfe8 {[%emt 0:01:41]} 18. Ba6 {[%emt 0:02:27]} Bxa6 {[%emt 0:01:38]} 19. Qxa6 {[%emt 0:00:06]} Nc6 {[%emt 0:00:04]} 20. Rad1 {[%emt 0:07:11]} Na5 {[%emt 0:03:07]} 21. Qb5 {[%emt 0:04:03]} Qb7 {[%emt 0:00:29]} 22. Qd3 {[%emt 0:01:08]} Qc6 {[%emt 0:01:55]} 23. Qb5 {[%emt 0:00:27]} Qxb5 {[%emt 0:03:21]} 24. axb5 {[%emt 0:00:06]} Re7 {[%emt 0:00:01]} 25. Ra1 {[%emt 0:01:11]} d5 {[%emt 0:00:36]} 26. Ne5 {[%emt 0:00:38]} Ne8 {[%emt 0:01:24]} 27. b4 {[%emt 0:05:57]} Nb7 {[%emt 0:00:07]} 28. Nc6 {[%emt 0:00:27]} Rec7 {[%emt 0:00:20]} 29. Nxa7 {[%emt 0:00:14]} Ra8 {[%emt 0:00:06]} 30. Nc6 {[%emt 0:00:15]} Rxa1 {[%emt 0:00:17]} 31. Rxa1 {[%emt 0:00:01]} Ned6 {[%emt 0:00:42]} 32. Ra6 {[%emt 0:04:58]} Nxb5 {[%emt 0:00:15]} 33. Rxb6 {[%emt 0:00:13]} Nxc3 {[%emt 0:00:05]} 34. Nb3 {[%emt 0:02:34]} Nd6 {[%emt 0:00:56]} 35. Nba5 {[%emt 0:01:12]} Kh7 {[%emt 0:00:21]} 36. f3 {[%emt 0:00:25]} Nc4 {[%emt 0:03:37]} 37. Ra6 {[%emt 0:03:11]} Ne3 {[%emt 0:02:02]} 38. Kf2 {[%emt 0:01:12]} Nc2 {[%emt 0:00:01]} 39. Ra8 {[%emt 0:01:06]} Nb5 {[%emt 0:00:36]} 40. Rb8 {[%emt 0:02:51]} Ncxd4 {[%emt 0:00:32]} 41. Rb6 {[%emt 0:02:49]} Nxc6 {[%emt 0:04:00]} 42. Nxc6 {[%emt 0:02:00]} Na3 {[%emt 0:01:08]} 43. Ra6 {[%emt 0:01:09]} Nc4 {[%emt 0:00:20]} 44. f4 {[%emt 0:00:56]} Rb7 {[%emt 0:06:01]} 45. Ke2 {[%emt 0:01:25]} g5 {[%emt 0:10:01]} 46. Kd3 {[%emt 0:00:56]} gxf4 {[%emt 0:01:08]} 47. gxf4 {[%emt 0:00:06]} Kg6 {[%emt 0:00:10]} 48. Kd4 {[%emt 0:01:37]} Rb5 {[%emt 0:00:05]} 49. Ra7 {[%emt 0:00:22]} f6 {[%emt 0:00:18]} 50. Kc3 {[%emt 0:00:35]} Nd6 {[%emt 0:01:21]} 51. Re7 {[%emt 0:00:56]} Rb6 {[%emt 0:02:59]} 52. Nd4 {[%emt 0:00:14]} Ne4+ {[%emt 0:00:22]} 53. Kb3 {[%emt 0:00:14]} Nc5+ {[%emt 0:00:05]} 54. Kc3 {[%emt 0:00:09]} Ne4+ {[%emt 0:00:08]} 55. Kb3 {[%emt 0:00:02]} Kh5 {[%emt 0:03:28]} 56. Nxe6 {[%emt 0:00:41]} Kg4 {[%emt 0:00:03]} 57. Nc7 {[%emt 0:00:12]} Rd6 {[%emt 0:00:05]} 58. b5 {[%emt 0:01:49]} Kxf4 {[%emt 0:00:05]} 59. Kb4 {[%emt 0:00:39]} d4 {[%emt 0:00:54]} 60. Kc4 {[%emt 0:00:28]} d3 {[%emt 0:00:05]} 61. Nd5+ {[%emt 0:00:36]} Kf3 {[%emt 0:00:05]} 62. b6 {[%emt 0:00:32]} d2 {[%emt 0:00:20]} 63. Rxe4 {[%emt 0:00:28]} Kxe4 {[%emt 0:00:59]} 64. b7 {[%emt 0:00:17]} Rxd5 {[%emt 0:01:14]} 65. b8=Q {[%emt 0:01:16]} d1=Q {[%emt 0:00:04]} 66. Qe8+ {[%emt 0:00:00]} Kf4 {[%emt 0:00:15]} 67. Qb8+ {[%emt 0:00:00]} Re5 {[%emt 0:00:10]} 68. Qb2 {[%emt 0:00:20]} Qe2+ {[%emt 0:00:08]} 0-1

[Event "Pan-American U20-ch 2023"]
[Site "Volta Redonda"]
[Date "2023.11.09"]
[Round "5.4"]
[White "Reyes Zavaleta, Fabian Ricardo"]
[Black "Schnaider, Ilan"]
[Result "0-1"]
[ECO "D12"]
[WhiteElo "2122"]
[BlackElo "2292"]
[Annotator "RC"]
[PlyCount "50"]
[EventDate "2023.10.31"]
[EventType "swiss"]
[EventCountry "BRA"]
[SourceTitle "playchess.com"]
[Source "ChessBase"]
[SourceQuality "1"]
[TimeControl "5400+30"]

1. d4 {[%emt 0:09:34]} d5 {[%emt 0:00:10]} 2. c4 {[%emt 0:00:28]} c6 {[%emt 0:00:07]} 3. Nf3 {[%emt 0:00:19]} Nf6 {[%emt 0:00:08]} 4. e3 {[%emt 0:00:36]} Bf5 {[%emt 0:00:36]} 5. Nc3 {[%emt 0:00:06]} e6 {[%emt 0:00:21]} 6. Nh4 {[%emt 0:00:28]} Be4 {[%emt 0:00:15]} 7. f3 {[%emt 0:00:09]} Bg6 {[%emt 0:00:05]} 8. Qb3 {[%emt 0:00:39]} Qc7 {[%emt 0:00:29]} 9. Bd2 {[%emt 0:01:10]} a5 {[%emt 0:01:05]} 10. Rc1 {[%emt 0:05:57]} Be7 {[%emt 0:01:58]} 11. Nxg6 {[%emt 0:08:10]} hxg6 {[%emt 0:00:06]} 12. g3 {[%emt 0:00:09]} Nbd7 {[%emt 0:06:17]} 13. cxd5 {[%emt 0:00:11]} Nxd5 {[%emt 0:00:23]} 14. Kf2 {[%emt 0:00:53]} Nxc3 {[%emt 0:03:53]} 15. Bxc3 {[%emt 0:03:35]} Nf6 {[%emt 0:04:04]} 16. Bd3 {[%emt 0:05:07]} O-O {[%emt 0:04:06]} 17. a3 {[%emt 0:03:58]} Rfd8 {[%emt 0:02:11]} 18. Rhd1 {[%emt 0:00:23]} Nd5 {[%emt 0:03:14]} 19. Bd2 {[%emt 0:04:23]} Nb6 {[%emt 0:04:37]} 20. f4 {[%emt 0:03:35]} Nd7 {[%emt 0:08:48]} 21. e4 {[%emt 0:11:43]} Nf6 {[%emt 0:04:26]} 22. Rc4 {[%emt 0:05:56]} b5 {[%emt 0:14:13]} 23. Qxb5 {[%emt 0:04:11]} Rxd4 {[%emt 0:00:22]} 24. Rxc6 {[%emt 0:00:09]} Qd7 {[%emt 0:03:08]} 25. Ra6 {[%emt 0:14:20]} Rd8 {[%emt 0:04:45]} 0-1

[Event "Pan-American U20-ch 2023"]
[Site "Volta Redonda"]
[Date "2023.11.09"]
[Round "5.5"]
[White "Montes Orozco, Miguel Angel"]
[Black "Filgueiras, Nathan Felipe"]
[Result "1/2-1/2"]
[ECO "B31"]
[WhiteElo "2105"]
[BlackElo "2331"]
[Annotator "RC"]
[PlyCount "137"]
[EventDate "2023.10.31"]
[EventType "swiss"]
[EventCountry "BRA"]
[SourceTitle "playchess.com"]
[Source "ChessBase"]
[SourceQuality "1"]
[TimeControl "5400+30"]

1. e4 c5 2. Nf3 Nc6 3. Bb5 g6 4. O-O Bg7 5. Bxc6 bxc6 6. Re1 Nf6 7. e5 Nd5 8. c4 Nc7 9. Nc3 O-O 10. d4 cxd4 11. Qxd4 Ne6 12. Qh4 f6 13. Ne4 fxe5 14. Neg5 Nxg5 15. Bxg5 Qc7 16. Bxe7 Rf4 17. Bd8 Qd6 18. Qe7 Qxe7 19. Bxe7 Rxc4 20. Nxe5 Rc2 21. Ba3 d5 22. Nd3 Bf5 23. Nb4 Rc4 24. Rac1 Rc8 25. Rxc4 dxc4 26. Rc1 Be6 27. h3 a5 28. Na6 Bd5 29. Nc5 Rb8 30. Na4 Kf7 31. Kf1 Bf6 32. f3 g5 33. Rc2 h6 34. Nc3 Rd8 35. Bc5 Be6 36. Bb6 Ra8 37. Ne4 Be5 38. Bf2 Rb8 39. Be1 a4 40. Bc3 Bf4 41. Bd2 Be5 42. Bc3 Bf4 43. Bd2 a3 44. bxa3 Rb1+ 45. Kf2 Bc7 46. Bb4 Rd1 47. Ke2 Rg1 48. Kf2 Rd1 49. Ke2 Rg1 50. Kf2 Rd1 51. Ke2 Rd8 52. Rd2 Bd5 53. Nc3 Bf4 54. Rd1 h5 55. Bc5 Kg6 56. Kf2 Bc7 57. Bd4 h4 58. Kf1 Ra8 59. Bc5 Rd8 60. Bd4 Be6 61. Be3 Rd3 62. Rxd3 cxd3 63. Ke1 Ba5 64. Kd2 Bc4 65. Bc5 Kf5 66. Bb4 Bc7 67. Bc5 Bf4+ 68. Be3 Bd6 69. Bxg5 1/2-1/2

[Event "Pan-American U20-ch 2023"]
[Site "Volta Redonda"]
[Date "2023.11.09"]
[Round "6.1"]
[White "Flores Quillas, Diego Saul Rodri"]
[Black "Soriano Quispe, Ivan Excender"]
[Result "1-0"]
[ECO "B36"]
[WhiteElo "2369"]
[BlackElo "2214"]
[Annotator "RC"]
[PlyCount "125"]
[EventDate "2023.10.31"]
[EventType "swiss"]
[EventCountry "BRA"]
[SourceTitle "playchess.com"]
[Source "ChessBase"]
[SourceQuality "1"]
[TimeControl "5400+30"]

1. e4 {[%emt 0:09:48]} c5 {[%emt 0:00:18]} 2. Nf3 {[%emt 0:00:06]} Nc6 {[%emt 0:00:12]} 3. d4 {[%emt 0:00:30]} cxd4 {[%emt 0:00:18]} 4. Nxd4 {[%emt 0:00:01]} g6 {[%emt 0:00:14]} 5. c4 {[%emt 0:02:33]} Nf6 {[%emt 0:00:34]} 6. Nc3 {[%emt 0:00:15]} d6 {[%emt 0:00:07]} 7. f3 {[%emt 0:00:18]} Nxd4 {[%emt 0:00:26]} 8. Qxd4 {[%emt 0:00:05]} Bg7 {[%emt 0:00:06]} 9. Be3 {[%emt 0:00:09]} O-O {[%emt 0:00:19]} 10. Qd2 {[%emt 0:00:09]} a5 {[%emt 0:00:34]} 11. Bd3 {[%emt 0:00:26]} a4 {[%emt 0:05:43]} 12. Rb1 {[%emt 0:00:07]} Be6 {[%emt 0:03:10]} 13. Nb5 {[%emt 0:02:37]} Nd7 {[%emt 0:01:29]} 14. Nd4 {[%emt 0:01:09]} Nc5 {[%emt 0:01:24]} 15. Be2 {[%emt 0:02:48]} Bd7 {[%emt 0:01:12]} 16. O-O {[%emt 0:02:21]} Qa5 {[%emt 0:00:44]} 17. Rfd1 {[%emt 0:01:33]} Rfc8 {[%emt 0:01:58]} 18. Bf1 {[%emt 0:02:56]} Qxd2 {[%emt 0:01:56]} 19. Rxd2 {[%emt 0:00:03]} Be5 {[%emt 0:10:46]} 20. g3 {[%emt 0:08:01]} h5 {[%emt 0:06:15]} 21. Kf2 {[%emt 0:00:31]} Bg7 {[%emt 0:05:44]} 22. Rc1 {[%emt 0:15:24]} Ne6 {[%emt 0:04:09]} 23. Ne2 {[%emt 0:00:53]} Nc5 {[%emt 0:04:22]} 24. Nc3 {[%emt 0:00:40]} Bc6 {[%emt 0:05:23]} 25. Rdc2 {[%emt 0:04:07]} Kf8 {[%emt 0:03:30]} 26. Ke2 {[%emt 0:08:16]} Ra6 {[%emt 0:02:04]} 27. Nd5 {[%emt 0:09:29]} Bxd5 {[%emt 0:08:05]} 28. cxd5 {[%emt 0:00:07]} Rb6 {[%emt 0:00:17]} 29. Rb1 {[%emt 0:00:07]} Ra8 {[%emt 0:03:55]} 30. Kd2 {[%emt 0:04:02]} Rb4 {[%emt 0:00:47]} 31. a3 {[%emt 0:04:45]} Rb6 {[%emt 0:01:12]} 32. Bc4 {[%emt 0:00:04]} Bf6 {[%emt 0:04:47]} 33. Ke2 {[%emt 0:00:23]} Rc8 {[%emt 0:03:18]} 34. f4 {[%emt 0:00:44]} Bg7 {[%emt 0:02:41]} 35. Kf3 {[%emt 0:00:30]} Bf6 {[%emt 0:01:03]} 36. h3 {[%emt 0:00:06]} Bg7 {[%emt 0:01:20]} 37. g4 {[%emt 0:00:27]} hxg4+ {[%emt 0:01:18]} 38. hxg4 {[%emt 0:02:20]} Kg8 {[%emt 0:00:02]} 39. Kg2 {[%emt 0:00:29]} Kf8 {[%emt 0:00:22]} 40. Kf3 {[%emt 0:01:47]} Kg8 {[%emt 0:00:01]} 41. Bf2 {[%emt 0:00:25]} Kf8 {[%emt 0:00:26]} 42. Re2 {[%emt 0:00:39]} Kg8 {[%emt 0:00:41]} 43. g5 {[%emt 0:01:31]} Kf8 {[%emt 0:00:23]} 44. e5 {[%emt 0:00:35]} Rc7 {[%emt 0:02:19]} 45. Rc1 {[%emt 0:01:49]} Rc8 {[%emt 0:00:19]} 46. Rec2 {[%emt 0:00:45]} Rc7 {[%emt 0:01:13]} 47. Bd4 {[%emt 0:00:15]} Kg8 {[%emt 0:01:10]} 48. Ke3 {[%emt 0:00:48]} Rc8 {[%emt 0:00:19]} 49. Rh1 {[%emt 0:00:36]} Nd7 {[%emt 0:03:01]} 50. Bxb6 {[%emt 0:03:06]} Nxb6 {[%emt 0:00:03]} 51. exd6 {[%emt 0:02:38]} exd6 {[%emt 0:02:29]} 52. Kd3 {[%emt 0:00:09]} Nd7 {[%emt 0:00:14]} 53. Bb5 {[%emt 0:00:37]} Nc5+ {[%emt 0:00:06]} 54. Ke2 {[%emt 0:00:40]} Rc7 {[%emt 0:00:09]} 55. Re1 {[%emt 0:00:46]} f6 {[%emt 0:01:16]} 56. gxf6 {[%emt 0:00:22]} Bxf6 {[%emt 0:00:05]} 57. Kf3 {[%emt 0:00:11]} Rf7 {[%emt 0:01:14]} 58. Re8+ {[%emt 0:03:34]} Kg7 {[%emt 0:00:06]} 59. Kg4 {[%emt 0:00:27]} Bd4 {[%emt 0:00:50]} 60. Rce2 {[%emt 0:00:51]} Bf6 {[%emt 0:00:27]} 61. Ra8 {[%emt 0:00:56]} Bd4 {[%emt 0:00:13]} 62. Rd8 {[%emt 0:02:15]} Bg1 {[%emt 0:00:43]} 63. Rxd6 {[%emt 0:00:45]} 1-0

[Event "Pan-American U20-ch 2023"]
[Site "Volta Redonda"]
[Date "2023.11.09"]
[Round "6.2"]
[White "Ibarra, Juan Martin"]
[Black "Oro, Faustino"]
[Result "1-0"]
[ECO "B33"]
[WhiteElo "2219"]
[BlackElo "2356"]
[Annotator "RC"]
[PlyCount "137"]
[EventDate "2023.10.31"]
[EventType "swiss"]
[EventCountry "BRA"]
[SourceTitle "playchess.com"]
[Source "ChessBase"]
[SourceQuality "1"]
[TimeControl "5400+30"]

1. e4 {[%emt 0:06:55]} c5 {[%emt 0:00:07]} 2. Nf3 {[%emt 0:00:11]} Nc6 {[%emt 0:00:07]} 3. d4 {[%emt 0:00:10]} cxd4 {[%emt 0:00:10]} 4. Nxd4 {[%emt 0:00:02]} Nf6 {[%emt 0:00:05]} 5. Nc3 {[%emt 0:00:03]} e5 {[%emt 0:00:20]} 6. Ndb5 {[%emt 0:01:00]} d6 {[%emt 0:00:16]} 7. Nd5 {[%emt 0:07:17]} Nxd5 {[%emt 0:00:39]} 8. exd5 {[%emt 0:00:02]} Nb8 {[%emt 0:01:16]} 9. c4 {[%emt 0:00:07]} Be7 {[%emt 0:00:20]} 10. Bd3 {[%emt 0:00:46]} O-O {[%emt 0:00:41]} 11. O-O {[%emt 0:00:15]} a6 {[%emt 0:00:20]} 12. Nc3 {[%emt 0:00:04]} f5 {[%emt 0:00:15]} 13. f3 {[%emt 0:00:03]} Nd7 {[%emt 0:01:31]} 14. a3 {[%emt 0:02:25]} Bg5 {[%emt 0:13:57]} 15. Qc2 {[%emt 0:04:20]} g6 {[%emt 0:00:36]} 16. b4 {[%emt 0:06:04]} b6 {[%emt 0:05:51]} 17. Na4 {[%emt 0:08:37]} Bb7 {[%emt 0:06:14]} 18. Bxg5 {[%emt 0:07:00]} Qxg5 {[%emt 0:00:00]} 19. Qc1 {[%emt 0:00:29]} Qxc1 {[%emt 0:09:14]} 20. Raxc1 {[%emt 0:01:19]} Rac8 {[%emt 0:00:26]} 21. Rb1 {[%emt 0:13:21]} Rc7 {[%emt 0:24:09]} 22. Rfc1 {[%emt 0:01:26]} Rfc8 {[%emt 0:00:48]} 23. c5 {[%emt 0:06:12]} b5 {[%emt 0:03:22]} 24. c6 {[%emt 0:00:47]} bxa4 {[%emt 0:00:41]} 25. Bc4 {[%emt 0:02:26]} Nb8 {[%emt 0:01:13]} 26. cxb7 {[%emt 0:02:11]} Rxb7 {[%emt 0:00:09]} 27. Be2 {[%emt 0:00:44]} Rbc7 {[%emt 0:01:09]} 28. Rxc7 {[%emt 0:00:33]} Rxc7 {[%emt 0:00:00]} 29. Bd1 {[%emt 0:01:50]} Rc3 {[%emt 0:01:44]} 30. Ra1 {[%emt 0:02:59]} Nd7 {[%emt 0:00:33]} 31. Bxa4 {[%emt 0:00:11]} Nb6 {[%emt 0:00:20]} 32. Bc6 {[%emt 0:00:20]} Rb3 {[%emt 0:00:12]} 33. Bb7 {[%emt 0:02:04]} Nc4 {[%emt 0:00:22]} 34. Bxa6 {[%emt 0:03:48]} Nxa3 {[%emt 0:00:33]} 35. Rc1 {[%emt 0:04:18]} Rxb4 {[%emt 0:00:55]} 36. Rc6 {[%emt 0:00:07]} e4 {[%emt 0:01:03]} 37. fxe4 {[%emt 0:01:11]} fxe4 {[%emt 0:00:08]} 38. Kf2 {[%emt 0:02:40]} Rb3 {[%emt 0:01:51]} 39. Rxd6 {[%emt 0:00:43]} Nc2 {[%emt 0:00:59]} 40. Rd8+ {[%emt 0:04:54]} Kg7 {[%emt 0:00:24]} 41. d6 {[%emt 0:01:34]} e3+ {[%emt 0:04:56]} 42. Kf3 {[%emt 0:00:08]} Nd4+ {[%emt 0:02:49]} 43. Ke4 {[%emt 0:00:07]} Ne6 {[%emt 0:01:16]} 44. Re8 {[%emt 0:03:45]} Nc5+ {[%emt 0:01:10]} 45. Kd4 {[%emt 0:01:08]} Nxa6 {[%emt 0:04:55]} 46. d7 {[%emt 0:00:01]} Nb8 {[%emt 0:01:34]} 47. d8=Q {[%emt 0:00:02]} Nc6+ {[%emt 0:00:10]} 48. Kc4 {[%emt 0:00:01]} Nxd8 {[%emt 0:00:21]} 49. Kxb3 {[%emt 0:00:01]} Nc6 {[%emt 0:01:05]} 50. Rxe3 {[%emt 0:00:10]} Kf6 {[%emt 0:00:31]} 51. Kc4 {[%emt 0:00:16]} h5 {[%emt 0:01:41]} 52. Kd5 {[%emt 0:00:53]} Ne7+ {[%emt 0:00:07]} 53. Ke4 {[%emt 0:00:06]} Nf5 {[%emt 0:00:15]} 54. Ra3 {[%emt 0:00:22]} Kg5 {[%emt 0:01:55]} 55. Ke5 {[%emt 0:01:01]} h4 {[%emt 0:00:52]} 56. Rb3 {[%emt 0:00:56]} Nh6 {[%emt 0:01:04]} 57. Ke6 {[%emt 0:00:37]} Nf5 {[%emt 0:04:53]} 58. Kf7 {[%emt 0:00:11]} Nd6+ {[%emt 0:00:40]} 59. Kg7 {[%emt 0:00:54]} Ne8+ {[%emt 0:00:06]} 60. Kf8 {[%emt 0:00:09]} Nd6 {[%emt 0:00:14]} 61. Rb6 {[%emt 0:00:16]} Nc4 {[%emt 0:01:02]} 62. Ra6 {[%emt 0:00:25]} Kf5 {[%emt 0:00:19]} 63. Kg7 {[%emt 0:01:10]} g5 {[%emt 0:00:14]} 64. Kh6 {[%emt 0:00:08]} g4 {[%emt 0:00:34]} 65. Kh5 {[%emt 0:00:24]} Ne3 {[%emt 0:00:05]} 66. Ra5+ {[%emt 0:00:56]} Kf4 {[%emt 0:00:09]} 67. Ra4+ {[%emt 0:00:02]} Kf5 {[%emt 0:00:16]} 68. g3 {[%emt 0:01:23]} hxg3 {[%emt 0:00:15]} 69. hxg3 {[%emt 0:00:01]} 1-0